bitfinex/quotes_SOLUSD_20240530
["timestamp","ask_amount","ask_price","bid_price","bid_amount"]
[1717072566549,0.8158164,167.24,167.2,113.97]
[1717072566775,0.8158164,167.24,167.2,95.96]
[1717072566929,2.2125,167.23,167.18,98.173]
[1717072567130,2.2125,167.23,167.2,60.0]
[1717072567345,2.2125,167.23,167.19,2.213]
[1717072567551,2.2125,167.23,167.18,95.96]
[1717072567746,3.0282164,167.24,167.19,2.213]
[1717072567952,2.2125,167.23,167.18,98.1731]
[1717072568150,2.2125,167.23,167.2,60.0]
[1717072568344,3.0282164,167.24,167.2,60.0]
[1717072568643,2.2125,167.23,167.18,116.1831]
[1717072568859,2.2125,167.23,167.18,98.1731]
[1717072569081,2.2125,167.23,167.19,2.213]
[1717072569236,3.0282164,167.24,167.19,2.213]
[1717072569442,3.0282164,167.24,167.2,60.0]
[1717072569641,0.8158164,167.24,167.2,62.2128]
[1717072569845,0.8158164,167.24,167.22,95.96]
[1717072570461,0.8158164,167.24,167.2,62.2128]
[1717072570750,3.0281164,167.24,167.2,62.2128]
[1717072570955,2.2125,167.23,167.19,35.96]
[1717072571159,2.2125,167.23,167.2,60.0]
[1717072571361,0.8158164,167.24,167.2,116.1828]
[1717072571647,3.0281164,167.24,167.2,35.96]
[1717072571845,0.8158164,167.24,167.2,35.96]
[1717072572049,0.8158164,167.24,167.2,116.1828]
[1717072572249,0.8158164,167.24,167.22,60.0]
[1717072572548,0.8158164,167.24,167.22,62.2126]
[1717072572781,0.8158164,167.24,167.22,116.1826]
[1717072573272,0.8158164,167.24,167.23,62.2926]
[1717072574358,0.8158164,167.24,167.23,56.1825]
[1717072575750,0.8158164,167.24,167.23,97.5802]
[1717072576168,1.64e-05,167.24,167.23,97.5802]
[1717072576370,1.64e-05,167.24,167.23,117.5802]
[1717072576970,1.64e-05,167.24,167.23,506.2802]
[1717072577674,4.4208,167.39,167.34,60.0]
[1717072577860,2.2106,167.37,167.34,60.0]
[1717072578064,2.2108,167.36,167.33,35.96]
[1717072578573,2.2108,167.36,167.32,60.0]
[1717072578787,2.2108,167.36,167.31,2.2114]
[1717072578954,2.2111,167.34,167.29,38.1716]
[1717072579275,0.8158164,167.4,167.32,60.0]
[1717072579276,6.0784,167.39,167.32,60.0]
[1717072579479,2.2109,167.35,167.32,60.0]
[1717072579773,10.4992,167.39,167.32,60.0]
[1717072579774,2.2108,167.36,167.32,113.97]
[1717072579979,2.2107,167.37,167.32,116.1813]
[1717072580288,2.2108,167.36,167.32,95.96]
[1717072580780,2.2107,167.37,167.32,98.1712]
[1717072580966,6.1932,167.36,167.29,95.96]
[1717072581159,6.1932,167.36,167.28,2.2118]
[1717072581160,2.2112,167.33,167.28,2.2118]
[1717072581494,2.2114,167.32,167.27,20.2219]
[1717072581786,2.2121,167.27,167.24,60.0]
[1717072582075,6.1932,167.36,167.24,60.0]
[1717072582076,6.1932,167.36,167.27,60.0]
[1717072582275,6.1932,167.36,167.31,60.0]
[1717072582276,2.211,167.34,167.31,60.0]
[1717072582480,2.211,167.34,167.3,53.97]
[1717072582685,19.8938,167.39,167.32,113.97]
[1717072582893,2.2109,167.35,167.32,113.97]
[1717072583056,2.211,167.35,167.32,113.97]
[1717072583476,2.211,167.34,167.3,56.1815]
[1717072583665,2.2114,167.32,167.28,60.0]
[1717072583872,8.8444,167.34,167.24,62.2123]
[1717072584054,2.2118,167.29,167.24,62.2123]
[1717072584254,0.94942617,167.39,167.24,60.0]
[1717072584591,2.212,167.27,167.23,35.96]
[1717072584884,2.2122,167.25,167.21,2.2127]
[1717072585087,2.2122,167.25,167.22,60.0]
[1717072585385,6.5819,167.3,167.22,62.2126]
[1717072585386,2.2121,167.26,167.22,62.2126]
[1717072585564,2.2121,167.26,167.22,98.1726]
[1717072585764,2.2121,167.26,167.22,95.96]
[1717072585983,7.53132617,167.3,167.19,2.213]
[1717072586287,4.4243,167.26,167.18,450.9131]
[1717072586583,2.2126,167.22,167.18,448.7]
[1717072586790,2.2126,167.22,167.18,60.0]
[1717072586989,6.2645,167.25,167.15,60.0]
[1717072587288,8.464,167.17,167.15,60.0]
[1717072587461,6.2507,167.17,167.15,60.0]
[1717072587661,2.2129,167.2,167.15,116.1835]
[1717072587982,8.8499,167.24,167.15,116.1835]
[1717072587983,2.213,167.19,167.15,95.96]
[1717072588386,6.2507,167.18,167.15,95.96]
[1717072588684,6.2507,167.18,167.15,116.1835]
[1717072588988,15.281,167.25,167.17,95.96]
[1717072588989,6.1129,167.22,167.17,95.96]
[1717072589289,39.54254221,167.45,167.19,60.0]
[1717072589290,6.1129,167.27,167.19,60.0]
[1717072589490,6.5595,167.24,167.2,60.0]
[1717072589664,22.9089,167.26,167.2,60.0]
[1717072589859,8.7721,167.22,167.18,35.96]
[1717072590087,2.2128,167.21,167.16,98.1733]
[1717072590282,8.7723,167.21,167.16,98.1733]
[1717072590675,2.2125,167.23,167.18,116.1831]
[1717072590879,6.6607,167.25,167.2,60.0]
[1717072590880,2.2124,167.24,167.2,60.0]
[1717072591076,2.2125,167.23,167.18,116.1831]
[1717072591273,35.9415,167.28,167.18,35.96]
[1717072591274,8.8596,167.22,167.18,35.96]
[1717072591476,8.8597,167.21,167.18,35.96]
[1717072591681,11.0712,167.26,167.18,98.173]
[1717072591872,2.2125,167.23,167.19,2.213]
[1717072592374,2.2125,167.23,167.2,60.0]
[1717072592577,2.2123,167.25,167.22,60.0]
[1717072592775,2.2124,167.24,167.2,113.97]
[1717072592985,2.2124,167.24,167.2,53.97]
[1717072593250,2.2122,167.25,167.22,60.0]
[1717072593794,4.4238,167.28,167.2,116.1828]
[1717072593996,2.2121,167.26,167.21,2.2127]
[1717072594289,2.2122,167.25,167.2,113.97]
[1717072594663,2.2122,167.25,167.21,2.2127]
[1717072595499,6.3497,167.3,167.17,4.4264]
[1717072595500,6.3497,167.3,167.19,35.96]
[1717072595803,7.29912617,167.3,167.16,426.8733]
[1717072596097,2.2125,167.23,167.19,60.0]
[1717072596266,4.4247,167.25,167.18,35.96]
[1717072596472,6.3497,167.3,167.16,390.9134]
[1717072596793,2.2127,167.22,167.19,60.0]
[1717072596993,2.213,167.2,167.17,60.0]
[1717072597183,4.425,167.23,167.1,15.2558]
[1717072597184,6.6177,167.21,167.15,62.2135]
[1717072597500,6.6177,167.21,167.15,60.0]
[1717072597501,2.2131,167.19,167.15,60.0]
[1717072597705,2.2131,167.18,167.15,60.0]
[1717072597887,11.043,167.22,167.15,60.0]
[1717072598078,8.8309,167.18,167.15,60.0]
[1717072598290,6.6177,167.18,167.15,60.0]
[1717072598500,2.2129,167.2,167.15,62.2135]
[1717072599173,2.2131,167.19,167.15,60.0]
[1717072599379,2.2131,167.18,167.15,60.0]
[1717072599801,2.2131,167.19,167.15,60.0]
[1717072600099,2.2131,167.18,167.15,60.0]
[1717072600400,6.4685,167.19,167.15,60.0]
[1717072600626,15.7482,167.19,167.15,60.0]
[1717072600792,6.4306,167.17,167.15,60.0]
[1717072600974,8.6437,167.19,167.15,60.0]
[1717072601169,2.2132,167.18,167.15,60.0]
[1717072602397,8.848,167.27,167.2,113.97]
[1717072602586,2.2126,167.23,167.2,113.97]
[1717072602806,2.2126,167.22,167.2,35.96]
[1717072603299,2.2125,167.23,167.2,35.96]
[1717072603489,4.4245,167.25,167.19,35.96]
[1717072603674,2.2129,167.2,167.19,35.96]
[1717072604005,61.84275406,167.32,167.13,19.6273]
[1717072604006,4.4251,167.23,167.15,98.1735]
[1717072604181,2.213,167.19,167.15,95.96]
[1717072604383,2.2131,167.18,167.15,95.96]
[1717072604584,2.2131,167.19,167.15,95.96]
[1717072605306,4.4246,167.25,167.2,60.0]
[1717072605605,2.2128,167.21,167.18,60.0]
[1717072605789,4.425,167.23,167.16,60.0]
[1717072605986,2.213,167.19,167.16,60.0]
[1717072606184,2.2132,167.18,167.16,60.0]
[1717072606581,6.24314938,167.3,167.16,60.0]
[1717072606582,4.4246,167.25,167.18,60.0]
[1717072606905,2.2124,167.24,167.2,95.96]
[1717072607218,8.8493,167.25,167.17,35.96]
[1717072607388,2.2128,167.21,167.17,35.96]
[1717072607590,11.0609,167.26,167.19,95.96]
[1717072607792,2.2125,167.23,167.19,95.96]
[1717072607988,2.2125,167.23,167.19,98.173]
[1717072608188,2.2125,167.23,167.19,95.96]
[1717072608601,2.2125,167.23,167.21,60.0]
[1717072608904,2.2124,167.24,167.21,60.0]
[1717072609087,6.0491,167.28,167.23,60.0]
[1717072609289,2.2119,167.28,167.25,60.0]
[1717072609705,2.2119,167.28,167.25,95.96]
[1717072609905,6.0491,167.32,167.27,60.0]
[1717072610102,6.0491,167.32,167.27,95.96]
[1717072610324,2.2116,167.3,167.27,95.96]
[1717072610511,2.2118,167.29,167.27,35.96]
[1717072610807,2.2119,167.27,167.25,95.96]
[1717072611105,15.4794,167.32,167.25,95.96]
[1717072611310,2.2119,167.27,167.25,60.0]
[1717072611605,2.2119,167.27,167.25,95.96]
[1717072611803,2.2118,167.28,167.25,95.96]
[1717072612299,2.2119,167.27,167.25,95.96]
[1717072612498,2.2119,167.28,167.25,95.96]
[1717072613527,2.2117,167.29,167.25,95.96]
[1717072614218,8.17115268,167.39,167.27,95.96]
[1717072614420,4.4222,167.34,167.27,113.97]
[1717072614915,4.4222,167.34,167.27,116.1819]
[1717072615133,4.4222,167.34,167.29,60.0]
[1717072615428,6.633,167.35,167.29,60.0]
[1717072617419,6.633,167.35,167.29,95.96]
[1717072618501,6.633,167.35,167.31,60.0]
[1717072618696,6.8357164,167.4,167.31,60.0]
[1717072619310,6.8357164,167.4,167.29,113.97]
[1717072619520,6.8357164,167.4,167.29,95.96]
[1717072620528,6.8357164,167.4,167.29,113.97]
[1717072620710,6.8357164,167.4,167.29,95.96]
[1717072621035,6.8357164,167.4,167.27,60.0]
[1717072621901,6.8357164,167.4,167.29,60.0]
[1717072622100,6.8357164,167.4,167.27,95.96]
[1717072622521,6.8357164,167.4,167.29,60.0]
[1717072623022,6.8357164,167.4,167.29,95.96]
[1717072623604,6.8357164,167.4,167.31,60.0]
[1717072624526,6.8357164,167.4,167.33,60.0]
[1717072624731,6.8357164,167.4,167.31,113.97]
[1717072624929,6.8357164,167.4,167.28,60.0]
[1717072625230,6.8357164,167.4,167.29,35.96]
[1717072625821,6.8357164,167.4,167.3,60.0]
[1717072627136,6.8357164,167.4,167.29,35.96]
[1717072627626,0.94942617,167.39,167.26,35.96]
[1717072628512,7.78514257,167.4,167.26,35.96]
[1717072628719,6.8357164,167.4,167.29,95.96]
[1717072629149,6.8357164,167.4,167.32,60.0]
[1717072629349,6.8357164,167.4,167.3,38.1715]
[1717072629528,6.8357164,167.4,167.3,35.96]
[1717072631048,6.8357164,167.4,167.29,60.0]
[1717072631230,0.94942617,167.39,167.26,2.212]
[1717072631435,0.94942617,167.39,167.27,2.2119]
[1717072631650,6.8357164,167.4,167.27,2.2119]
[1717072631955,6.8357164,167.4,167.29,62.2117]
[1717072632535,6.8357164,167.4,167.27,116.1818]
[1717072633042,6.8357164,167.4,167.29,60.0]
[1717072635454,6.8357164,167.4,167.27,98.1719]
[1717072635656,6.8357164,167.4,167.28,2.2118]
[1717072635861,6.8357164,167.4,167.27,116.1819]
[1717072636956,6.8357164,167.4,167.27,95.96]
[1717072637259,7.78514257,167.4,167.26,35.96]
[1717072637472,0.94942617,167.39,167.25,388.7]
[1717072637962,6.8357164,167.4,167.26,60.0]
[1717072638139,0.94942617,167.39,167.24,2.2123]
[1717072638340,45.94942617,167.39,167.24,38.1723]
[1717072638554,45.94942617,167.39,167.24,35.96]
[1717072639056,45.94942617,167.39,167.24,38.1723]
[1717072639243,45.94942617,167.39,167.24,35.96]
[1717072639445,45.94942617,167.39,167.21,98.1727]
[1717072639642,67.4597,167.38,167.21,95.96]
[1717072639856,0.94942617,167.37,167.21,95.96]
[1717072640039,45.94942617,167.37,167.21,95.96]
[1717072640246,6.6494,167.36,167.21,35.96]
[1717072640446,45.94942617,167.35,167.2,388.7]
[1717072640654,45.94942617,167.35,167.19,62.213]
[1717072640964,45.94942617,167.35,167.19,60.0]
[1717072641166,45.94942617,167.35,167.19,95.96]
[1717072641458,6.6494,167.36,167.21,95.96]
[1717072642370,6.6494,167.36,167.21,98.1727]
[1717072642569,6.6494,167.36,167.21,95.96]
[1717072643062,6.6494,167.36,167.23,60.0]
[1717072643375,43.21032011,167.36,167.23,60.0]
[1717072644243,6.6494,167.36,167.25,60.0]
[1717072644640,6.6494,167.36,167.28,38.1718]
[1717072644975,6.6494,167.36,167.29,60.0]
[1717072645148,6.6494,167.36,167.27,18.01]
[1717072645149,6.6494,167.36,167.27,62.2119]
[1717072645462,6.6494,167.36,167.27,60.0]
[1717072645637,6.6494,167.36,167.26,35.96]
[1717072645845,6.6494,167.36,167.29,60.0]
[1717072647162,7.1960164,167.4,167.31,60.0]
[1717072647364,7.1960164,167.4,167.31,95.96]
[1717072647540,7.1960164,167.4,167.31,113.97]
[1717072648560,7.1960164,167.4,167.33,60.0]
[1717072649239,7.1960164,167.4,167.31,113.97]
[1717072649638,7.1960164,167.4,167.33,60.0]
[1717072649856,0.8158164,167.4,167.35,60.0]
[1717072650441,0.8158164,167.4,167.37,60.0]
[1717072651843,0.8158164,167.4,167.36,35.96]
[1717072652273,0.8158164,167.4,167.36,53.97]
[1717072652949,0.8158164,167.4,167.37,60.0]
[1717072654053,0.8158164,167.4,167.36,95.96]
[1717072659764,0.8158164,167.4,167.36,116.1807]
[1717072660157,0.8158164,167.4,167.38,60.0]
[1717072661291,0.8158164,167.4,167.38,113.97]
[1717072661573,0.8158164,167.4,167.38,122.7442]
[1717072662057,0.8158164,167.4,167.38,120.5337]
[1717072663567,0.8158164,167.4,167.38,113.97]
[1717072664378,0.8158164,167.4,167.38,95.96]
[1717072665680,0.8158164,167.4,167.36,60.0]
[1717072665879,0.8158164,167.4,167.36,95.96]
[1717072667781,0.8158164,167.4,167.35,2.2109]
[1717072668086,0.8158164,167.4,167.35,62.2109]
[1717072668285,0.8158164,167.4,167.35,95.96]
[1717072668482,0.8158164,167.4,167.37,60.0]
[1717072668665,0.8158164,167.4,167.35,116.1809]
[1717072668982,0.8158164,167.4,167.37,95.96]
[1717072669183,0.8158164,167.4,167.39,60.0]
[1717072669363,0.8158164,167.4,167.37,113.97]
[1717072669962,0.8158164,167.4,167.37,95.96]
[1717072671291,0.8158164,167.4,167.39,60.0]
[1717072672208,0.8158164,167.4,167.39,113.97]
[1717072672370,0.8158164,167.4,167.39,116.1804]
[1717072672566,0.8158164,167.4,167.37,80.2205]
[1717072672772,0.8158164,167.4,167.36,35.96]
[1717072674786,0.8158164,167.4,167.35,62.2109]
[1717072675084,0.8158164,167.4,167.34,388.7]
[1717072675503,0.8158164,167.4,167.35,60.0]
[1717072675871,0.8158164,167.4,167.34,388.7]
[1717072676198,0.8158164,167.4,167.34,424.66]
[1717072677290,0.8158164,167.4,167.3,38.1715]
[1717072679792,0.8158164,167.4,167.3,35.96]
[1717072680482,17.3443164,167.4,167.3,35.96]
[1717072680689,17.3443164,167.4,167.28,388.7]
[1717072680907,17.3443164,167.4,167.26,35.96]
[1717072681091,17.3443164,167.4,167.27,60.0]
[1717072681288,53.61926133,167.4,167.26,38.172]
[1717072681495,6.4939,167.39,167.26,35.96]
[1717072681995,6.4939,167.39,167.25,60.0]
[1717072682300,7.44332617,167.39,167.24,53.97]
[1717072682602,6.4939,167.39,167.25,60.0]
[1717072682802,6.4939,167.39,167.24,56.1823]
[1717072682803,6.4939,167.39,167.28,95.96]
[1717072682985,6.4939,167.39,167.26,80.222]
[1717072683179,6.4939,167.39,167.26,35.96]
[1717072683378,7.44332617,167.39,167.26,35.96]
[1717072683599,7.44332617,167.39,167.22,62.2126]
[1717072683797,6.4939,167.39,167.27,60.0]
[1717072684096,6.4939,167.39,167.26,2.2121]
[1717072684301,6.4939,167.39,167.25,95.96]
[1717072684703,6.4939,167.39,167.25,98.1722]
[1717072684904,6.4939,167.39,167.25,116.1822]
[1717072686294,6.88,167.26,167.25,116.1822]
[1717072686900,6.88,167.26,167.25,113.97]
[1717072687283,6.88,167.26,167.25,95.96]
[1717072687600,7.44332617,167.39,167.27,60.0]
[1717072687783,6.4939,167.39,167.27,60.0]
[1717072688201,6.4939,167.39,167.29,95.96]
[1717072688386,6.4939,167.39,167.29,116.1817]
[1717072688589,6.4939,167.39,167.34,60.0]
[1717072688799,6.4939,167.39,167.34,95.96]
[1717072688997,0.8158164,167.4,167.34,95.96]
[1717072689221,6.88,167.35,167.34,95.96]
[1717072689599,6.88,167.35,167.34,98.171]
[1717072689805,0.8158164,167.4,167.36,60.0]
[1717072690099,6.88,167.37,167.34,113.97]
[1717072690310,0.8158164,167.4,167.36,60.0]
[1717072690508,0.8158164,167.4,167.36,95.96]
[1717072690711,0.8158164,167.4,167.38,60.0]
[1717072690907,0.8158164,167.4,167.38,95.96]
[1717072691305,0.8158164,167.4,167.39,2.2104]
[1717072691514,0.8158164,167.4,167.39,56.1804]
[1717072692932,0.8158164,167.4,167.39,53.97]
[1717072694000,0.8158164,167.4,167.39,35.96]
[1717072694507,0.8158164,167.4,167.39,56.1804]
[1717072695017,0.8158164,167.4,167.39,53.97]
[1717072695199,0.8158164,167.4,167.39,77.9254]
[1717072695603,0.8158164,167.4,167.39,466.6254]
[1717072695915,0.8158164,167.4,167.39,451.2789]
[1717072696497,0.8158164,167.4,167.39,466.3726]
[1717072698216,0.8158164,167.4,167.39,451.2789]
[1717072699106,0.8158164,167.4,167.39,467.6122]
[1717072700321,0.8158164,167.4,167.39,451.2789]
[1717072700822,0.8158164,167.4,167.39,424.66]
[1717072701307,0.8158164,167.4,167.39,35.96]
[1717072703009,0.8158164,167.4,167.39,62.6613]
[1717072703704,0.8158164,167.4,167.39,56.1804]
[1717072704654,0.8158164,167.4,167.39,62.7765]
[1717072704943,0.8158164,167.4,167.39,79.3349]
[1717072707344,0.8158164,167.4,167.39,451.4765]
[1717072708221,0.8158164,167.4,167.39,504.8804]
[1717072708417,0.8158164,167.4,167.39,484.66]
[1717072708623,0.8158164,167.4,167.39,502.67]
[1717072708836,0.8158164,167.4,167.39,484.66]
[1717072709641,0.8158164,167.4,167.39,486.8704]
[1717072710221,0.8158164,167.4,167.39,484.66]
[1717072710425,0.8158164,167.4,167.39,486.8704]
[1717072710935,0.8158164,167.4,167.39,504.8804]
[1717072713241,0.8158164,167.4,167.39,116.1804]
[1717072714246,0.8158164,167.4,167.39,95.96]
[1717072714545,0.8158164,167.4,167.38,95.96]
[1717072714730,0.8158164,167.4,167.36,486.8707]
[1717072714926,0.8158164,167.4,167.36,388.7]
[1717072715230,6.8976164,167.4,167.36,388.7]
[1717072715541,6.0818,167.39,167.36,388.7]
[1717072716617,0.8158164,167.4,167.36,448.7]
[1717072716841,0.8158164,167.4,167.38,60.0]
[1717072717017,6.87,167.39,167.38,60.0]
[1717072717815,0.8158164,167.4,167.38,113.97]
[1717072718041,7.6858164,167.4,167.38,113.97]
[1717072718342,0.8158164,167.4,167.38,113.97]
[1717072718735,0.8158164,167.4,167.37,35.96]
[1717072719331,0.8158164,167.4,167.38,60.0]
[1717072719733,0.8158164,167.4,167.38,95.96]
[1717072720442,0.8158164,167.4,167.38,35.96]
[1717072721331,0.8158164,167.4,167.38,95.96]
[1717072721838,0.8158164,167.4,167.37,95.96]
[1717072722038,0.8158164,167.4,167.37,35.96]
[1717072722241,0.8158164,167.4,167.37,95.96]
[1717072723055,0.8158164,167.4,167.36,98.1707]
[1717072723353,0.8158164,167.4,167.36,116.1807]
[1717072723848,0.8158164,167.4,167.36,113.97]
[1717072724643,0.8158164,167.4,167.37,2.2106]
[1717072724944,0.8158164,167.4,167.38,62.2105]
[1717072725747,0.8158164,167.4,167.38,60.0]
[1717072726247,0.8158164,167.4,167.36,98.1707]
[1717072726750,0.8158164,167.4,167.36,2.2107]
[1717072727052,0.8158164,167.4,167.36,98.1707]
[1717072727348,0.8158164,167.4,167.34,98.1709]
[1717072727525,0.8158164,167.4,167.34,95.96]
[1717072727726,0.8158164,167.4,167.35,2.2109]
[1717072728742,7.4099164,167.4,167.35,2.51157276]
[1717072728932,7.4099164,167.4,167.34,95.96]
[1717072728933,7.4099164,167.4,167.34,98.171]
[1717072729347,7.4099164,167.4,167.34,38.171]
[1717072729651,7.4099164,167.4,167.34,35.96]
[1717072730052,7.4099164,167.4,167.34,38.171]
[1717072730657,7.4099164,167.4,167.34,2.211]
[1717072731655,0.8158164,167.4,167.35,62.2109]
[1717072732152,0.8158164,167.4,167.35,60.0]
[1717072732354,0.8158164,167.4,167.33,95.96]
[1717072732557,0.8158164,167.4,167.35,60.0]
[1717072733143,0.8158164,167.4,167.35,116.1808]
[1717072734128,0.8158164,167.4,167.38,60.0]
[1717072735648,0.8158164,167.4,167.37,35.96]
[1717072736547,0.8158164,167.4,167.37,95.96]
[1717072736861,0.8158164,167.4,167.39,60.0]
[1717072737443,0.8158164,167.4,167.39,95.96]
[1717072738361,7.6858164,167.4,167.39,95.96]
[1717072739941,0.8158164,167.4,167.39,95.96]
[1717072740275,0.8158164,167.4,167.38,35.96]
[1717072740443,0.8158164,167.4,167.37,60.0]
[1717072740769,0.8158164,167.4,167.35,35.96]
[1717072740770,6.87,167.38,167.35,95.96]
[1717072741064,0.8158164,167.4,167.35,35.96]
[1717072741065,6.87,167.36,167.35,35.96]
[1717072741248,6.87,167.36,167.3,60.0]
[1717072741444,6.87,167.36,167.31,35.96]
[1717072741638,6.87,167.36,167.31,38.1714]
[1717072742954,6.87,167.36,167.31,35.96]
[1717072743358,13.1319,167.36,167.3,38.1715]
[1717072744349,6.2619,167.36,167.31,2.2114]
[1717072744766,6.2619,167.36,167.3,38.1715]
[1717072744948,6.2619,167.36,167.3,2.2115]
[1717072745555,6.2619,167.36,167.29,98.1717]
[1717072745752,6.2619,167.36,167.29,95.96]
[1717072745955,6.2619,167.36,167.25,414.8632]
[1717072745956,6.2619,167.36,167.27,98.1719]
[1717072746151,6.2619,167.36,167.28,2.2118]
[1717072746752,6.2619,167.36,167.29,2.2117]
[1717072747675,6.2619,167.36,167.28,2.2118]
[1717072747985,6.2619,167.36,167.23,388.7]
[1717072748162,12.45585896,167.36,167.24,62.2122]
[1717072748368,12.45585896,167.36,167.25,2.2121]
[1717072748567,6.2619,167.36,167.24,62.2122]
[1717072748867,6.2619,167.36,167.25,2.2122]
[1717072749057,6.2619,167.36,167.24,62.2123]
[1717072749245,6.2619,167.36,167.24,60.0]
[1717072749449,6.6445,167.34,167.21,60.0]
[1717072749849,6.6445,167.34,167.21,62.2127]
[1717072750074,6.6445,167.34,167.21,60.0]
[1717072750372,6.6445,167.34,167.2,424.66]
[1717072750584,6.6445,167.34,167.2,35.96]
[1717072750786,0.94942617,167.33,167.2,35.96]
[1717072751151,0.94942617,167.33,167.19,35.96]
[1717072751351,6.6445,167.34,167.19,38.173]
[1717072751568,7.59392617,167.34,167.19,38.173]
[1717072752072,7.59392617,167.34,167.19,35.96]
[1717072753662,6.6445,167.34,167.23,60.0]
[1717072753869,6.6445,167.34,167.26,60.0]
[1717072754060,6.6445,167.34,167.25,35.96]
[1717072754261,6.6445,167.34,167.25,38.1722]
[1717072754582,6.6445,167.34,167.27,60.0]
[1717072755654,6.6445,167.34,167.27,95.96]
[1717072756252,6.6445,167.34,167.27,98.1719]
[1717072756474,6.6445,167.34,167.27,95.96]
[1717072756655,6.6445,167.34,167.25,62.2121]
[1717072756858,6.6445,167.34,167.25,98.1721]
[1717072757783,6.6445,167.34,167.27,60.0]
[1717072757984,6.6445,167.34,167.25,95.96]
[1717072758169,6.6445,167.34,167.25,98.1722]
[1717072758671,6.6445,167.34,167.24,38.1723]
[1717072758868,6.6445,167.34,167.22,388.7]
[1717072760066,0.94942617,167.33,167.19,62.213]
[1717072760264,0.94942617,167.33,167.18,98.1731]
[1717072760884,0.94942617,167.33,167.19,2.213]
[1717072761085,0.94942617,167.33,167.18,2.2131]
[1717072761560,6.6389,167.32,167.18,2.2131]
[1717072761961,6.5751,167.3,167.17,98.1733]
[1717072763191,6.5751,167.3,167.14,18.01]
[1717072763192,6.5751,167.3,167.15,60.0]
[1717072763366,45.94942617,167.29,167.15,60.0]
[1717072763560,6.5751,167.3,167.17,60.0]
[1717072763871,6.5751,167.3,167.15,98.1735]
[1717072764196,6.5751,167.3,167.15,95.96]
[1717072764375,6.5751,167.3,167.17,95.96]
[1717072764781,6.5751,167.3,167.15,62.2134]
[1717072764981,6.5751,167.3,167.15,60.0]
[1717072765296,6.5751,167.3,167.17,60.0]
[1717072765466,11.2853482,167.3,167.17,60.0]
[1717072765791,53.75562051,167.3,167.15,95.96]
[1717072767197,53.75562051,167.3,167.15,98.1735]
[1717072767568,53.75562051,167.3,167.19,60.0]
[1717072767976,42.85004493,167.3,167.19,60.0]
[1717072768273,42.85004493,167.3,167.17,95.96]
[1717072768588,42.85004493,167.3,167.19,60.0]
[1717072769100,49.04470713,167.3,167.19,60.0]
[1717072769792,42.85004493,167.3,167.19,60.0]
[1717072770171,49.044821,167.3,167.19,60.0]
[1717072770506,42.85004493,167.3,167.19,60.0]
[1717072771482,49.04492175,167.3,167.18,60.0]
[1717072772782,49.04492175,167.3,167.17,35.96]
[1717072773076,49.04492175,167.3,167.16,60.0]
[1717072773386,51.97112617,167.29,167.14,95.96]
[1717072773590,51.0217,167.29,167.14,98.1736]
[1717072773780,51.0217,167.29,167.14,95.96]
[1717072774791,6.0217,167.29,167.16,60.0]
[1717072774993,6.0217,167.29,167.18,60.0]
[1717072775379,6.0217,167.29,167.18,95.96]